fUST/lending_fUST_20240826
["ID","MTS","AMOUNT","RATE_DAILY","PERIOD"]
[335961790,1724644246493,-809.79,0.00012369,2]
[335961793,1724644246503,-544.4,0.00012369,2]
[335961795,1724644246512,-1201.67,0.00012369,2]
[335961797,1724644246521,-645.22,0.00012369,2]
[335961799,1724644246530,-500.0,0.00012369,2]
[335961801,1724644246541,-546.13,0.00012369,2]
[335961803,1724644246550,-506.41,0.00012369,2]
[335961805,1724644246561,-1048.1,0.00012369,2]
[335961807,1724644246570,-646.33,0.00012369,2]
[335961809,1724644246579,-500.0,0.00012369,2]
[335961810,1724644246588,-820.84,0.00012369,2]
[335961813,1724644246598,-500.0,0.00012369,2]
[335961814,1724644246607,-500.0,0.00012369,2]
[335961816,1724644246616,-500.0,0.00012369,2]
[335961818,1724644246626,-500.0,0.00012369,2]
[335961820,1724644246635,-569.13,0.00012369,2]
[335961822,1724644246644,-1034.09,0.00012369,2]
[335961824,1724644246654,-500.0,0.00012369,2]
[335961826,1724644246663,-720.83,0.00012369,2]
[335961828,1724644246673,-529.02,0.00012369,2]
[335961830,1724644246682,-589.78,0.00012369,2]
[335961832,1724644246693,-500.0,0.00012369,2]
[335961834,1724644246702,-783.53,0.00012369,2]
[335961836,1724644246711,-699.31,0.00012369,2]
[335961838,1724644246720,-500.0,0.00012369,2]
[335961840,1724644246729,-833.58,0.00012369,2]
[335961842,1724644246739,-651.4,0.00012369,2]
[335961844,1724644246748,-538.08,0.00012369,2]
[335961846,1724644246757,-500.0,0.00012369,2]
[335961848,1724644246766,-706.92,0.00012369,2]
[335961850,1724644246776,-1152.17,0.00012369,2]
[335961852,1724644246785,-547.5,0.00012369,2]
[335961854,1724644246798,-500.0,0.00012369,2]
[335961856,1724644246807,-500.0,0.00012369,2]
[335961858,1724644246816,-500.0,0.00012369,2]
[335961860,1724644246825,-500.0,0.00012369,2]
[335961862,1724644246835,-500.0,0.00012369,2]
[335961863,1724644246845,-802.42,0.00012369,2]
[335961865,1724644246854,-500.0,0.00012369,2]
[335961867,1724644246863,-597.94,0.00012369,2]
[335961869,1724644246876,-500.0,0.00012369,2]
[335961871,1724644246886,-1086.69,0.00012369,2]
[335961874,1724644246896,-500.0,0.00012369,2]
[335961876,1724644246906,-670.46,0.00012369,2]
[335961878,1724644246916,-799.27,0.00012369,2]
[335961879,1724644246925,-507.22,0.00012369,2]
[335961881,1724644246935,-500.0,0.00012369,2]
[335961884,1724644246945,-1276.26,0.00012369,2]
[335961886,1724644246956,-500.0,0.00012369,2]
[335961888,1724644246966,-658.83,0.00012369,2]
[335961890,1724644246975,-622.01,0.00012369,2]
[335961892,1724644246985,-894.48,0.00012369,2]
[335961894,1724644246995,-661.34,0.00012369,2]
[335961896,1724644247004,-776.52,0.00012369,2]
[335961898,1724644247014,-725.92,0.00012369,2]
[335961900,1724644247024,-500.0,0.00012369,2]
[335961902,1724644247034,-500.0,0.00012369,2]
[335961904,1724644247044,-500.0,0.00012369,2]
[335961906,1724644247054,-500.0,0.00012369,2]
[335961908,1724644247063,-500.0,0.00012369,2]
[335961910,1724644247073,-500.0,0.00012369,2]
[335961912,1724644247082,-500.0,0.00012371,2]
[335961913,1724644247092,-1010.380254,0.00012552,2]
[335961916,1724644247102,-1010.380254,0.00012552,2]
[335961918,1724644247111,-409.311066,0.000126,2]
[335961920,1724644247121,-153.0,0.000126,2]
[335961922,1724644247130,-600.19421187,0.00012621,2]
[335961924,1724644247140,-892.28345009,0.00012621,2]
[335962976,1724644492212,811.61439946,0.00011999,2]
[335962978,1724644539540,310.51011385,0.00011999,2]
[335962979,1724644555449,612.14050839,0.00011999,2]
[335962980,1724644559194,1500.0,0.00011999,2]
[335962981,1724644574402,422.61635359,0.00011999,2]
[335962982,1724644595459,3094.87417801,0.00011999,2]
[335962983,1724644613402,154.74467129,0.00011999,2]
[335962984,1724644635257,1614.5867324,0.00011999,2]
[335962987,1724644792811,210.39215594,0.00011999,2]
[335962988,1724644793638,780.60811079,0.00011999,2]
[335962989,1724644804484,404.72731861,0.00011999,2]
[335962990,1724644869510,204.27227137,0.00011964,2]
[335962991,1724644871536,388.60862664,0.00011999,2]
[335962992,1724644881387,569.9707157,0.00011999,2]
[335962993,1724644894371,36054.55493272,0.00011964,2]
[335962994,1724644899812,874.5043186,0.00011983,2]
[335962995,1724644900608,164.61487591,0.00011999,2]
[335962996,1724644952859,154.85649844,0.00011999,2]
[335962998,1724644975555,2284.65250856,0.00011965,2]
[335962999,1724644977467,2284.65250852,0.00011966,2]
[335963000,1724644979459,2284.65250852,0.00011968,2]
[335963001,1724644981522,2284.65250852,0.00011969,2]
[335963002,1724644983522,2284.65250852,0.0001197,2]
[335963003,1724645037077,164.560786,0.00011148,2]
[335963004,1724645037368,164.560786,0.0001118,2]
[335963005,1724645037569,164.560786,0.00011213,2]
[335963006,1724645037797,164.560786,0.00011245,2]
[335963007,1724645038044,164.560786,0.00011277,2]
[335963008,1724645038216,164.560786,0.00011309,2]
[335963009,1724645038622,164.560786,0.00011342,2]
[335963010,1724645038857,164.560786,0.00011374,2]
[335963011,1724645039053,164.560786,0.00011406,2]
[335963012,1724645039284,164.560786,0.00011439,2]
[335963013,1724645039493,164.560786,0.00011471,2]
[335963014,1724645039934,164.560786,0.00011503,2]
[335963015,1724645040241,164.560786,0.00011535,2]
[335963016,1724645040535,164.560786,0.00011568,2]
[335963017,1724645040671,164.560786,0.000116,2]
[335963018,1724645040878,164.560786,0.00011632,2]
[335963019,1724645041086,164.560786,0.00011664,2]
[335963020,1724645041311,164.560786,0.00011697,2]
[335963021,1724645041676,164.560786,0.00011729,2]
[335963022,1724645095250,10268.4865521,0.00011063,2]
[335963026,1724645270904,154.74467129,0.00011999,2]
[335963027,1724645307836,2855.81563567,0.00011953,2]
[335963028,1724645358433,7983.51079151,0.00011999,2]
[335963034,1724645371702,1000.0,0.00012,2]
[335963043,1724645386317,157.21069484,0.00011999,2]
[335963044,1724645403264,1000.0,0.00012,2]
[335963139,1724645438815,-300.0,0.00012044,2]
[335963141,1724645438825,-300.0,0.00012044,2]
[335963143,1724645438835,-500.0,0.00012044,2]
[335963145,1724645438844,-742.68,0.00012044,2]
[335963147,1724645438853,-21071.00168939,0.00012045,2]
[335963149,1724645438868,-10998.71788242,0.00012045,2]
[335963153,1724645438894,-386842.60778919,0.00012045,2]
[335963155,1724645438903,-873.03,0.00012054,2]
[335963157,1724645438912,-8163.02,0.00012054,2]
[335963159,1724645438921,-500.0,0.00012054,2]
[335963161,1724645438937,-737.56,0.00012054,2]
[335963163,1724645438947,-500.0,0.00012054,2]
[335963165,1724645438956,-500.0,0.00012054,2]
[335963167,1724645438965,-665.66,0.00012054,2]
[335963169,1724645438974,-1018.93,0.00012054,2]
[335963171,1724645438983,-12437.77,0.00012054,2]
[335963173,1724645438993,-633.34,0.00012054,2]
[335963175,1724645439002,-678.15,0.00012054,2]
[335963177,1724645439011,-998.60195726,0.00012063,2]
[335963180,1724645439020,-500.0,0.00012064,2]
[335963182,1724645439030,-701.99,0.00012064,2]
[335963183,1724645439039,-500.84898048,0.00012064,2]
[335963186,1724645439049,-647.38,0.00012064,2]
[335963188,1724645439058,-857.91,0.00012064,2]
[335963189,1724645439067,-500.0,0.00012064,2]
[335963191,1724645439077,-500.0,0.00012064,2]
[335963194,1724645439086,-500.0,0.00012064,2]
[335963196,1724645439095,-645.95,0.00012064,2]
[335963198,1724645439105,-500.0,0.00012064,2]
[335963200,1724645439114,-500.0,0.00012064,2]
[335963202,1724645439123,-500.0,0.00012064,2]
[335963204,1724645439132,-500.0,0.00012064,2]
[335963206,1724645439141,-500.0,0.00012064,2]
[335963208,1724645439151,-500.0,0.00012064,2]
[335963210,1724645439161,-509.36192606,0.00012064,2]
[335963212,1724645439170,-500.0,0.00012064,2]
[335963214,1724645439181,-500.0,0.00012064,2]
[335963216,1724645439190,-500.0,0.00012064,2]
[335963218,1724645439199,-500.0,0.00012064,2]
[335963220,1724645439209,-500.0,0.00012064,2]
[335963222,1724645439218,-500.0,0.00012064,2]
[335963224,1724645439227,-541.23,0.00012064,2]
[335963226,1724645439236,-500.0,0.00012064,2]
[335963228,1724645439245,-500.0,0.00012064,2]
[335963230,1724645439255,-500.0,0.00012064,2]
[335963232,1724645439265,-500.0,0.00012064,2]
[335963234,1724645439274,-500.0,0.00012064,2]
[335963236,1724645439282,-500.71973307,0.00012064,2]
[335963238,1724645439291,-500.77238952,0.00012064,2]
[335963240,1724645439301,-500.0,0.00012064,2]
[335963241,1724645439310,-928.8,0.00012064,2]
[335963243,1724645439320,-501.3557964,0.00012064,2]
[335963246,1724645439330,-500.0,0.00012064,2]
[335963248,1724645439339,-500.71222381,0.00012064,2]
[335963250,1724645439348,-1004.93,0.00012064,2]
[335963252,1724645439358,-241.09333183,0.00012064,2]
[335963254,1724645439368,-500.0,0.00012064,2]
[335963256,1724645439377,-500.0,0.00012064,2]
[335963258,1724645439387,-500.0,0.00012064,2]
[335963260,1724645439396,-273.53139726,0.00012064,2]
[335963262,1724645439405,-163.05606085,0.00012064,2]
[335963264,1724645439414,-500.0,0.00012064,2]
[335963266,1724645439423,-565.63,0.00012064,2]
[335963268,1724645439434,-500.0,0.00012064,2]
[335963270,1724645439442,-500.0,0.00012064,2]
[335963272,1724645439452,-713.19,0.00012064,2]
[335963274,1724645439461,-500.0,0.00012064,2]
[335963276,1724645439470,-500.0,0.00012064,2]
[335963278,1724645439480,-822.12,0.00012064,2]
[335963280,1724645439489,-760.66,0.00012064,2]
[335963282,1724645439498,-564.11,0.00012064,2]
[335963284,1724645439507,-825.52,0.00012064,2]
[335963286,1724645439516,-500.0,0.00012064,2]
[335963288,1724645439525,-628.7,0.00012064,2]
[335963289,1724645439534,-942.5,0.00012064,2]
[335963290,1724645439543,-585.68,0.00012064,2]
[335963291,1724645439553,-500.0,0.00012064,2]
[335963292,1724645439561,-500.0,0.00012064,2]
[335963293,1724645439570,-500.0,0.00012064,2]
[335963294,1724645439579,-567.0,0.00012064,2]
[335963295,1724645439588,-500.0,0.00012064,2]
[335963296,1724645439597,-1159.41,0.00012064,2]
[335963297,1724645439606,-500.0,0.00012064,2]
[335963298,1724645439615,-500.0,0.00012064,2]
[335963299,1724645439624,-500.0,0.00012064,2]
[335963300,1724645439633,-500.0,0.00012064,2]
[335963301,1724645439642,-500.0,0.00012064,2]
[335963302,1724645439651,-634.99,0.00012064,2]
[335963303,1724645439660,-635.4,0.00012064,2]
[335963304,1724645439670,-500.0,0.00012064,2]
[335963305,1724645439679,-500.0,0.00012064,2]
[335963306,1724645439689,-500.0,0.00012064,2]
[335963308,1724645439698,-1089.03,0.00012064,2]
[335963310,1724645439707,-500.0,0.00012064,2]
[335963311,1724645439716,-500.0,0.00012064,2]
[335963313,1724645439725,-500.39612919,0.00012064,2]
[335963315,1724645439735,-500.0,0.00012064,2]
[335963317,1724645439744,-975.63,0.00012064,2]
[335963319,1724645439753,-500.0,0.00012064,2]
[335963320,1724645439762,-500.0,0.00012064,2]
[335963322,1724645439771,-500.0,0.00012064,2]
[335963324,1724645439780,-510.56,0.00012064,2]
[335963326,1724645439789,-500.0,0.00012064,2]
[335963327,1724645439798,-500.0,0.00012064,2]
[335963329,1724645439807,-500.0,0.00012064,2]
[335963331,1724645439816,-500.0,0.00012064,2]
[335963333,1724645439826,-500.0,0.00012064,2]
[335963335,1724645439836,-500.0,0.00012064,2]
[335963337,1724645439846,-500.0,0.00012064,2]
[335963339,1724645439856,-500.0,0.00012064,2]
[335963341,1724645439865,-501.87301085,0.00012064,2]
[335963343,1724645439874,-693.12,0.00012064,2]
[335963345,1724645439884,-500.0,0.00012064,2]
[335963347,1724645439892,-565.97,0.00012064,2]
[335963349,1724645439902,-500.0,0.00012064,2]
[335963351,1724645439910,-500.0,0.00012064,2]
[335963353,1724645439920,-500.0,0.00012064,2]
[335963355,1724645439929,-500.0,0.00012064,2]
[335963357,1724645439938,-500.0,0.00012064,2]
[335963359,1724645439947,-904.66,0.00012064,2]
[335963361,1724645439956,-500.0,0.00012064,2]
[335963363,1724645439966,-500.0,0.00012064,2]
[335963365,1724645439975,-500.0,0.00012064,2]
[335963369,1724645439985,-500.0,0.00012064,2]
[335963373,1724645439994,-500.0,0.00012064,2]
[335963377,1724645440003,-500.0,0.00012064,2]
[335963381,1724645440012,-500.0,0.00012064,2]
[335963385,1724645440021,-657.64,0.00012064,2]
[335963388,1724645440030,-531.49,0.00012064,2]
[335963391,1724645440039,-500.0,0.00012064,2]
[335963393,1724645440048,-500.0,0.00012064,2]
[335963395,1724645440057,-1035.4,0.00012064,2]
[335963397,1724645440067,-509.85717447,0.00012064,2]
[335963399,1724645440076,-500.0,0.00012064,2]
[335963401,1724645440085,-500.0,0.00012064,2]
[335963403,1724645440094,-500.0,0.00012064,2]
[335963405,1724645440103,-500.0,0.00012064,2]
[335963407,1724645440112,-500.0,0.00012064,2]
[335963409,1724645440121,-500.0,0.00012064,2]
[335963411,1724645440130,-583.67,0.00012064,2]
[335963413,1724645440140,-524.33,0.00012064,2]
[335963415,1724645440149,-500.0,0.00012064,2]
[335963417,1724645440159,-500.0,0.00012064,2]
[335963419,1724645440168,-500.0,0.00012064,2]
[335963420,1724645440178,-500.0,0.00012064,2]
[335963421,1724645440187,-1743.4,0.00012064,2]
[335963422,1724645440198,-1743.4,0.00012064,2]
[335963423,1724645440207,-1743.4,0.00012064,2]
[335963424,1724645440217,-1743.4,0.00012064,2]
[335963425,1724645440225,-1743.4,0.00012064,2]
[335963426,1724645440235,-1743.4,0.00012064,2]
[335963427,1724645440244,-1743.4,0.00012064,2]
[335963428,1724645440253,-1743.4,0.00012064,2]
[335963429,1724645440262,-500.0,0.00012064,2]
[335963430,1724645440271,-500.0,0.00012064,2]
[335963431,1724645440281,-500.0,0.00012064,2]
[335963432,1724645440289,-808.42,0.00012064,2]
[335963433,1724645440298,-385.97359748,0.00012064,2]
[335963434,1724645440308,-500.0,0.00012064,2]
[335963435,1724645440320,-500.0,0.00012064,2]
[335963437,1724645440330,-500.0,0.00012064,2]
[335963439,1724645440339,-500.0,0.00012064,2]
[335963441,1724645440349,-545.62,0.00012064,2]
[335963442,1724645440358,-500.0,0.00012064,2]
[335963444,1724645440367,-717.4,0.00012064,2]
[335963446,1724645440377,-648.79,0.00012064,2]
[335963448,1724645440386,-803.68,0.00012064,2]
[335963450,1724645440395,-500.0,0.00012064,2]
[335963453,1724645440406,-500.0,0.00012064,2]
[335963455,1724645440415,-12558.9,0.00012064,2]
[335963457,1724645440424,-1524.33,0.00012064,2]
[335963459,1724645440433,-500.0,0.00012064,2]
[335963461,1724645440442,-500.0,0.00012064,2]
[335963463,1724645440451,-706.57,0.00012064,2]
[335963464,1724645440461,-500.0,0.00012064,2]
[335963466,1724645440470,-500.0,0.00012064,2]
[335963468,1724645440479,-3330.93,0.00012064,2]
[335963470,1724645440488,-500.0,0.00012064,2]
[335963472,1724645440497,-500.0,0.00012064,2]
[335963474,1724645440506,-500.0,0.00012064,2]
[335963476,1724645440515,-3142.16,0.00012064,2]
[335963478,1724645440525,-500.0,0.00012064,2]
[335963480,1724645440534,-500.0,0.00012064,2]
[335963482,1724645440542,-500.0,0.00012064,2]
[335963484,1724645440551,-500.0,0.00012064,2]
[335963486,1724645440560,-500.0,0.00012064,2]
[335963488,1724645440570,-500.0,0.00012064,2]
[335963490,1724645440579,-513.7185685,0.00012064,2]
[335963492,1724645440588,-500.0,0.00012064,2]
[335963494,1724645440598,-501.17858701,0.00012064,2]
[335963496,1724645440606,-1606.61,0.00012064,2]
[335963498,1724645440615,-500.0,0.00012064,2]
[335963500,1724645440625,-500.0,0.00012064,2]
[335963502,1724645440634,-1138.23,0.00012064,2]
[335963504,1724645440643,-939.94,0.00012064,2]
[335963507,1724645440653,-560.33,0.00012064,2]
[335963510,1724645440662,-500.0,0.00012064,2]
[335963513,1724645440672,-500.0,0.00012064,2]
[335963516,1724645440682,-504.3290774,0.00012064,2]
[335963519,1724645440691,-594.33799973,0.00012064,2]
[335963522,1724645440700,-500.33029933,0.00012064,2]
[335963525,1724645440710,-500.0,0.00012064,2]
[335963528,1724645440719,-500.0,0.00012064,2]
[335963531,1724645440728,-611.83,0.00012064,2]
[335963535,1724645440737,-500.0,0.00012064,2]
[335963538,1724645440747,-500.0,0.00012064,2]
[335963541,1724645440756,-500.0,0.00012064,2]
[335963544,1724645440765,-500.0,0.00012064,2]
[335963548,1724645440775,-500.0,0.00012064,2]
[335963572,1724645441005,-500.0,0.00012064,2]
[335963574,1724645441015,-686.76,0.00012064,2]
[335963576,1724645441024,-500.0,0.00012064,2]
[335963578,1724645441033,-976.48,0.00012064,2]
[335963580,1724645441043,-863.24,0.00012064,2]
[335963583,1724645441053,-1313.21,0.00012064,2]
[335963585,1724645441062,-1463.07,0.00012064,2]
[335963587,1724645441072,-500.0,0.00012064,2]
[335963589,1724645441081,-792.06,0.00012064,2]
[335963590,1724645441089,-500.0,0.00012064,2]
[335963592,1724645441099,-662.49,0.00012064,2]
[335963594,1724645441109,-500.0,0.00012064,2]
[335963596,1724645441118,-511.82635922,0.00012064,2]
[335963598,1724645441127,-500.0,0.00012064,2]
[335963600,1724645441136,-651.38,0.00012064,2]
[335963602,1724645441146,-1180.48,0.00012064,2]
[335963604,1724645441155,-4146.7,0.00012064,2]
[335963606,1724645441165,-501.86457023,0.00012064,2]
[335963608,1724645441174,-500.0,0.00012064,2]
[335963610,1724645441184,-500.0,0.00012064,2]
[335963612,1724645441194,-931.06,0.00012064,2]
[335963614,1724645441204,-500.74279137,0.00012064,2]
[335963616,1724645441214,-500.0,0.00012064,2]
[335963618,1724645441224,-1089.41,0.00012064,2]
[335963620,1724645441234,-549.09,0.00012064,2]
[335963622,1724645441244,-500.0,0.00012064,2]
[335963624,1724645441255,-500.0,0.00012064,2]
[335963626,1724645441264,-590.46,0.00012064,2]
[335963628,1724645441275,-500.0,0.00012064,2]
[335963631,1724645441285,-500.0,0.00012064,2]
[335963633,1724645441295,-517.52,0.00012064,2]
[335963635,1724645441306,-500.0,0.00012064,2]
[335963637,1724645441319,-153.01881869,0.00012064,2]
[335963639,1724645441330,-4166.39,0.00012064,2]
[335963641,1724645441340,-3358.17,0.00012064,2]
[335963643,1724645441350,-500.0,0.00012064,2]
[335963645,1724645441360,-716.61,0.00012064,2]
[335963647,1724645441370,-651.97,0.00012064,2]
[335963649,1724645441380,-648.22,0.00012064,2]
[335963651,1724645441389,-500.0,0.00012064,2]
[335963653,1724645441400,-726.5,0.00012064,2]
[335963655,1724645441410,-34978.0,0.00012064,2]
[335963657,1724645441419,-500.0,0.00012064,2]
[335963659,1724645441429,-500.0,0.00012064,2]
[335963661,1724645441439,-500.0,0.00012064,2]
[335963663,1724645441448,-500.0,0.00012064,2]
[335963665,1724645441458,-608.89,0.00012064,2]
[335963667,1724645441467,-500.0,0.00012064,2]
[335963669,1724645441477,-504.88609184,0.00012064,2]
[335963671,1724645441487,-1267.99,0.00012064,2]
[335963673,1724645441496,-500.0,0.00012064,2]
[335963675,1724645441505,-500.0,0.00012064,2]
[335963677,1724645441516,-901.99,0.00012064,2]
[335963680,1724645441531,-500.0,0.00012064,2]
[335963682,1724645441543,-501.37875525,0.00012064,2]
[335963684,1724645441553,-500.0,0.00012064,2]
[335963686,1724645441562,-729.85,0.00012064,2]
[335963688,1724645441572,-500.0,0.00012064,2]
[335963690,1724645441582,-890.55,0.00012064,2]
[335963692,1724645441592,-501.94690989,0.00012064,2]
[335963694,1724645441602,-500.0,0.00012064,2]
[335963696,1724645441612,-500.0,0.00012064,2]
[335963698,1724645441622,-500.7129588,0.00012064,2]
[335963700,1724645441632,-500.0,0.00012064,2]
[335963702,1724645441642,-874.83,0.00012064,2]
[335963704,1724645441652,-775.56,0.00012064,2]
[335963706,1724645441661,-500.9909378,0.00012064,2]
[335963709,1724645441671,-535.28,0.00012064,2]
[335963711,1724645441681,-618.82,0.00012064,2]
[335963713,1724645441690,-559.24,0.00012064,2]
[335963715,1724645441700,-500.0,0.00012064,2]
[335963717,1724645441710,-524.35,0.00012064,2]
[335963719,1724645441721,-1320.24,0.00012064,2]
[335963721,1724645441731,-2013.57,0.00012064,2]
[335963723,1724645441741,-947.96,0.00012064,2]
[335963725,1724645441750,-574.56,0.00012064,2]
[335963727,1724645441760,-712.0,0.00012064,2]
[335963729,1724645441769,-500.0,0.00012064,2]
[335963731,1724645441779,-565.4,0.00012064,2]
[335963733,1724645441789,-500.0,0.00012064,2]
[335963735,1724645441798,-647.46,0.00012064,2]
[335963737,1724645441809,-676.76,0.00012064,2]
[335963739,1724645441818,-575.35,0.00012064,2]
[335963741,1724645441827,-500.0,0.00012064,2]
[335963743,1724645441837,-1087.34,0.00012064,2]
[335963745,1724645441846,-626.87,0.00012064,2]
[335963747,1724645441856,-500.0,0.00012064,2]
[335963749,1724645441865,-500.0,0.00012064,2]
[335963751,1724645441874,-503.0531508,0.00012064,2]
[335963753,1724645441885,-870.51,0.00012064,2]
[335963756,1724645441894,-608.41,0.00012064,2]
[335963757,1724645441904,-503.83,0.00012064,2]
[335963759,1724645441914,-685.54,0.00012064,2]
[335963761,1724645441923,-814.72,0.00012064,2]
[335963763,1724645441933,-500.0,0.00012064,2]
[335963765,1724645441943,-928.43,0.00012064,2]
[335963767,1724645441952,-500.0,0.00012064,2]
[335963769,1724645441962,-591.66,0.00012064,2]
[335963771,1724645441971,-500.0,0.00012064,2]
[335963774,1724645441985,-1482.66,0.00012064,2]
[335963776,1724645441994,-1494.93,0.00012064,2]
[335963778,1724645442004,-500.0,0.00012064,2]
[335963780,1724645442013,-500.0,0.00012064,2]
[335963782,1724645442022,-500.0,0.00012064,2]
[335963783,1724645442032,-500.0,0.00012064,2]
[335963784,1724645442041,-2591.66,0.00012064,2]
[335963786,1724645442051,-572.0,0.00012064,2]
[335963788,1724645442062,-776.42,0.00012064,2]
[335963790,1724645442072,-566.62755411,0.00012064,2]
[335963792,1724645442083,-500.0,0.00012064,2]
[335963794,1724645442095,-3801.80370314,0.0001207,2]
[335963797,1724645442106,-1743.4,0.00012072,2]
[335963799,1724645442117,-1743.4,0.00012072,2]
[335963801,1724645442128,-1743.4,0.00012072,2]
[335963803,1724645442140,-5628.37,0.00012072,2]
[335963806,1724645442150,-500.0,0.00012072,2]
[335963808,1724645442160,-500.0,0.00012072,2]
[335963810,1724645442170,-500.0,0.00012072,2]
[335963812,1724645442180,-676.73,0.00012072,2]
[335963814,1724645442196,-10603.96,0.00012072,2]
[335963816,1724645442205,-500.0,0.00012072,2]
[335963818,1724645442214,-754.79,0.00012072,2]
[335963820,1724645442224,-1165.79,0.00012072,2]
[335963822,1724645442234,-724.91,0.00012072,2]
[335963824,1724645442243,-500.0,0.00012072,2]
[335963826,1724645442253,-167.254161,0.00012073,2]
[335963828,1724645442263,-500.0,0.00012073,2]
[335963830,1724645442273,-500.0,0.00012073,2]
[335963832,1724645442283,-515.05,0.00012073,2]
[335963834,1724645442293,-500.0,0.00012073,2]
[335963836,1724645442303,-644.1,0.00012073,2]
[335963838,1724645442315,-500.0,0.00012073,2]
[335963840,1724645442324,-500.0,0.00012073,2]
[335963842,1724645442334,-798.6,0.00012073,2]
[335963844,1724645442343,-525.94,0.00012073,2]
[335963846,1724645442353,-513.51,0.00012073,2]
[335963848,1724645442363,-1151.09,0.00012073,2]
[335963851,1724645442372,-500.0,0.00012073,2]
[335963853,1724645442382,-798.58,0.00012073,2]
[335963855,1724645442392,-500.0,0.00012073,2]
[335963857,1724645442402,-1105.08,0.00012073,2]
[335963859,1724645442412,-500.0,0.00012073,2]
[335963861,1724645442421,-500.0,0.00012073,2]
[335963863,1724645442431,-500.0,0.00012073,2]
[335963865,1724645442441,-500.0,0.00012073,2]
[335963867,1724645442451,-1042.06,0.00012073,2]
[335963869,1724645442460,-500.0,0.00012073,2]
[335963871,1724645442470,-1190.98,0.00012073,2]
[335963873,1724645442479,-500.0,0.00012073,2]
[335963875,1724645442489,-1032.35,0.00012073,2]
[335963877,1724645442498,-500.0,0.00012073,2]
[335963879,1724645442508,-678.44,0.00012073,2]
[335963881,1724645442519,-872.9,0.00012073,2]
[335963883,1724645442529,-507.93,0.00012073,2]
[335963886,1724645442540,-500.0,0.00012073,2]
[335963888,1724645442550,-500.0,0.00012073,2]
[335963890,1724645442560,-958.35,0.00012073,2]
[335963892,1724645442570,-531.67,0.00012073,2]
[335963894,1724645442580,-1084.3,0.00012073,2]
[335963896,1724645442591,-847.27,0.00012073,2]
[335963898,1724645442600,-861.91,0.00012073,2]
[335963900,1724645442610,-733.62,0.00012073,2]
[335963902,1724645442620,-500.0,0.00012073,2]
[335963904,1724645442629,-545.39,0.00012073,2]
[335963907,1724645442640,-500.0,0.00012073,2]
[335963909,1724645442651,-500.0,0.00012073,2]
[335963911,1724645442661,-500.0,0.00012073,2]
[335963913,1724645442671,-500.0,0.00012073,2]
[335963915,1724645442680,-811.25,0.00012073,2]
[335963917,1724645442689,-1203.84,0.00012073,2]
[335963919,1724645442698,-645.12,0.00012073,2]
[335963921,1724645442708,-1099.71,0.00012073,2]
[335963923,1724645442717,-822.32,0.00012073,2]
[335963925,1724645442726,-500.61707899,0.00012073,2]